bitfinex/quotes_BTCUSD_20240911
["timestamp","ask_amount","ask_price","bid_price","bid_amount"]
[1726092515329,2e-07,57504.0,57503.0,3.31327469]
[1726092519446,2e-07,57504.0,57503.0,3.18322138]
[1726092520549,2e-07,57504.0,57503.0,3.06167679]
[1726092520760,2e-07,57504.0,57503.0,3.18322138]
[1726092525462,2e-07,57504.0,57503.0,3.18620754]
[1726092528054,2e-07,57504.0,57503.0,3.1864647]
[1726092528807,0.0674002,57504.0,57503.0,2.78130611]
[1726092529043,0.0674002,57504.0,57503.0,3.12911311]
[1726092529998,0.0674002,57504.0,57503.0,3.10111311]
[1726092530212,0.0674002,57504.0,57503.0,3.13811311]
[1726092530644,0.0674002,57504.0,57503.0,3.15211311]
[1726092530859,0.0674002,57504.0,57503.0,3.13811311]
[1726092531079,0.0674002,57504.0,57503.0,3.15211311]
[1726092531524,0.0674002,57504.0,57503.0,3.30846036]
[1726092531738,0.0674002,57504.0,57503.0,3.27358036]
[1726092532401,2e-07,57504.0,57503.0,3.27358036]
[1726092532842,2e-07,57504.0,57503.0,3.1176595]
[1726092541498,2e-07,57504.0,57503.0,3.1156595]
[1726092541735,2e-07,57504.0,57503.0,3.1176595]
[1726092546055,2e-07,57504.0,57503.0,2.92087841]
[1726092546772,0.0702002,57504.0,57503.0,2.92087841]
[1726092547018,0.0702002,57504.0,57503.0,3.1178856]
[1726092549073,2e-07,57504.0,57503.0,3.1178856]
[1726092550468,2e-07,57504.0,57503.0,2.92087841]
[1726092552309,2e-07,57504.0,57503.0,3.30356541]
[1726092553494,2e-07,57504.0,57503.0,3.28956541]
[1726092554587,2e-07,57504.0,57503.0,3.27556541]
[1726092554793,2e-07,57504.0,57503.0,3.30356541]
[1726092555233,2e-07,57504.0,57503.0,3.28956541]
[1726092555580,2e-07,57504.0,57503.0,3.30356541]
[1726092557430,2e-07,57504.0,57503.0,3.30156541]
[1726092557645,2e-07,57504.0,57503.0,3.30356541]
[1726092557891,2e-07,57504.0,57503.0,3.50037716]
[1726092567151,2e-07,57504.0,57503.0,3.62192175]
[1726092569426,0.0690002,57504.0,57503.0,3.62192175]
[1726092569856,0.0690002,57504.0,57503.0,3.27411475]
[1726092583646,0.0690002,57504.0,57503.0,3.27211475]
[1726092584817,0.0690002,57504.0,57503.0,3.27411475]
[1726092592668,0.0690002,57504.0,57503.0,3.27211475]
[1726092594015,0.0690002,57504.0,57503.0,3.27411475]
[1726092594255,0.0690002,57504.0,57503.0,3.27211475]
[1726092598132,0.0690002,57504.0,57503.0,3.24211475]
[1726092599031,0.0690002,57504.0,57503.0,3.24197787]
[1726092599910,0.0690002,57504.0,57503.0,3.27197787]
[1726092601710,0.1553002,57504.0,57503.0,1.6753521]
[1726092601928,0.1553002,57504.0,57503.0,1.6967916]
[1726092602152,0.1553002,57504.0,57503.0,2.04459803]
[1726092602372,0.1553002,57504.0,57503.0,1.76962302]
[1726092602597,0.1553002,57504.0,57503.0,1.75562302]
[1726092603042,0.1553002,57504.0,57503.0,1.76962302]
[1726092603258,2e-07,57504.0,57503.0,2.56791479]
[1726092603706,2e-07,57504.0,57503.0,2.76698611]
[1726092603916,2e-07,57504.0,57503.0,2.76498611]
[1726092604584,2e-07,57504.0,57503.0,2.89542351]
[1726092604802,2e-07,57504.0,57503.0,2.73698611]
[1726092605019,2e-07,57504.0,57503.0,2.86742351]
[1726092605516,2e-07,57504.0,57503.0,2.91630351]
[1726092606171,2e-07,57504.0,57503.0,2.90230351]
[1726092606394,2e-07,57504.0,57503.0,2.91630351]
[1726092606817,2e-07,57504.0,57503.0,2.90230351]
[1726092607086,2e-07,57504.0,57503.0,2.91630351]
[1726092607591,0.0697002,57504.0,57503.0,2.91630351]
[1726092607842,0.0697002,57504.0,57503.0,2.78586611]
[1726092608312,0.0697002,57504.0,57503.0,2.79986611]
[1726092608979,0.0697002,57504.0,57503.0,2.78586611]
[1726092610387,0.0697002,57504.0,57503.0,2.89012285]
[1726092611082,0.0697002,57504.0,57503.0,2.90412285]
[1726092612131,0.0697002,57504.0,57503.0,2.97354651]
[1726092614874,0.0697002,57504.0,57503.0,2.97554651]
[1726092616634,2e-07,57504.0,57503.0,2.97554651]
[1726092616857,2e-07,57504.0,57503.0,2.87129088]
[1726092617287,2e-07,57504.0,57503.0,3.3233253]
[1726092618000,2e-07,57504.0,57503.0,3.21909788]
[1726092618710,2e-07,57504.0,57503.0,2.86929088]
[1726092618937,2e-07,57504.0,57503.0,2.97352475]
[1726092619205,0.0640002,57504.0,57503.0,2.94352475]
[1726092619414,0.0640002,57504.0,57503.0,2.83929088]
[1726092622340,0.0640002,57504.0,57503.0,2.83909596]
[1726092622758,0.0640002,57504.0,57503.0,2.80421596]
[1726092622971,0.0640002,57504.0,57503.0,2.65967137]
[1726092623190,0.1519002,57504.0,57503.0,2.12374404]
[1726092623618,0.1519002,57504.0,57503.0,2.09768762]
[1726092623825,0.1519002,57504.0,57503.0,1.76962302]
[1726092624708,0.1519002,57504.0,57503.0,1.75562302]
[1726092624912,0.1519002,57504.0,57503.0,1.74162302]
[1726092625132,0.1519002,57504.0,57503.0,1.75562302]
[1726092625998,0.1519002,57504.0,57503.0,1.76962302]
[1726092626607,0.1519002,57504.0,57503.0,1.75562302]
[1726092627458,0.1519002,57504.0,57503.0,1.76962302]
[1726092637365,0.1519002,57504.0,57503.0,1.26962302]
[1726092648075,0.1517262,57504.0,57503.0,1.26962302]
[1726092649813,0.0638262,57504.0,57503.0,1.26962302]
[1726092655273,0.001638,57509.0,57503.0,0.7282392]
[1726092655495,0.001638,57509.0,57508.0,1.217219]
[1726092655708,0.001638,57509.0,57508.0,1.92302776]
[1726092657019,0.001638,57509.0,57508.0,1.93702776]
[1726092657463,0.001638,57509.0,57508.0,1.95102776]
[1726092658525,0.001638,57509.0,57508.0,1.93702776]
[1726092658772,0.001638,57509.0,57508.0,1.95102776]
[1726092659452,0.001638,57509.0,57508.0,1.93702776]
[1726092659666,0.001638,57509.0,57508.0,1.94602776]
[1726092659886,0.001638,57509.0,57508.0,1.97402776]
[1726092660106,0.001638,57509.0,57508.0,2.41680476]
[1726092660351,0.001638,57509.0,57508.0,2.43280476]
[1726092660561,0.001638,57509.0,57508.0,2.41880476]
[1726092660783,0.001638,57509.0,57508.0,2.43280476]
[1726092661014,0.001638,57509.0,57508.0,2.05302776]
[1726092661238,0.001638,57509.0,57508.0,2.06902776]
[1726092661463,0.001638,57509.0,57508.0,2.03902776]
[1726092661713,0.001638,57509.0,57508.0,2.02502776]
[1726092661923,0.001638,57509.0,57508.0,1.96002776]
[1726092662136,0.001638,57509.0,57508.0,1.94602776]
[1726092662647,0.001638,57509.0,57508.0,1.96002776]
[1726092662891,0.001638,57509.0,57508.0,1.97402776]
[1726092663357,0.001638,57509.0,57508.0,1.96002776]
[1726092663599,0.001638,57509.0,57508.0,1.97402776]
[1726092670278,0.001638,57509.0,57508.0,1.98099576]
[1726092676772,0.001638,57509.0,57508.0,1.91759576]
[1726092679257,0.066538,57509.0,57508.0,1.54681876]
[1726092680367,0.066538,57509.0,57508.0,1.53281876]
[1726092680587,0.151738,57509.0,57508.0,1.36391058]
[1726092680808,0.151738,57509.0,57508.0,1.26391058]
[1726092681284,0.151738,57509.0,57508.0,1.24991058]
[1726092681500,0.066538,57509.0,57508.0,1.23591058]
[1726092681712,0.066538,57509.0,57508.0,1.26391058]
[1726092681990,0.066538,57509.0,57508.0,1.24991058]
[1726092682203,0.066538,57509.0,57508.0,1.26391058]
[1726092682851,0.001638,57509.0,57508.0,1.78762776]
[1726092683278,0.001638,57509.0,57508.0,1.77362776]
[1726092683498,0.001638,57509.0,57508.0,1.78762776]
[1726092684508,0.066538,57509.0,57508.0,1.43985076]
[1726092684714,0.066538,57509.0,57508.0,1.26391058]
[1726092686338,0.0690306,57509.0,57508.0,1.26391058]
[1726092694045,0.0690306,57509.0,57508.0,0.22057958]
[1726092694278,0.1528306,57509.0,57508.0,0.22057958]
[1726092694764,0.1528306,57509.0,57508.0,0.04669158]
[1726092694765,0.37692698,57509.0,57508.0,0.04669158]
[1726092695009,0.3267156,57509.0,57508.0,0.03269158]
[1726092695509,0.64480031,57509.0,57508.0,0.014]
[1726092695699,0.173889,57508.0,57504.0,0.175538]
[1726092695964,0.25722883,57505.0,57504.0,0.001638]
[1726092696206,0.23542552,57505.0,57504.0,0.001638]
[1726092696447,0.33104508,57505.0,57504.0,0.001638]
[1726092696689,1.72192453,57505.0,57504.0,0.001638]
[1726092696933,1.24359349,57505.0,57504.0,0.001638]
[1726092697226,1.40025843,57505.0,57504.0,0.001638]
[1726092697480,1.24359349,57505.0,57504.0,0.001638]
[1726092697971,1.24559349,57505.0,57504.0,0.002638]
[1726092698474,1.24359349,57505.0,57504.0,0.001638]
[1726092698709,1.24959349,57505.0,57504.0,0.002638]
[1726092699165,1.24559349,57505.0,57504.0,0.002638]
[1726092699386,1.37782224,57505.0,57504.0,0.002638]
[1726092700220,1.34973364,57505.0,57504.0,0.001638]
[1726092700441,1.34873364,57505.0,57504.0,0.002638]
[1726092700656,1.37873364,57505.0,57504.0,0.002638]
[1726092700888,1.49272721,57505.0,57504.0,0.002638]
[1726092701106,1.84052221,57505.0,57504.0,0.002638]
[1726092701349,1.73838206,57505.0,57504.0,0.002638]
[1726092701574,1.74038206,57505.0,57504.0,0.002638]
[1726092701791,1.73838206,57505.0,57504.0,0.002638]
[1726092702668,1.84038206,57505.0,57504.0,0.002638]
[1726092703125,1.83838206,57505.0,57504.0,0.002638]
[1726092703617,1.84038206,57505.0,57504.0,0.002638]
[1726092704751,1.97033839,57505.0,57504.0,0.002638]
[1726092705423,1.84038206,57505.0,57504.0,0.002638]
[1726092705868,1.97033839,57505.0,57504.0,0.002638]
[1726092706084,1.99760894,57505.0,57504.0,0.002638]
[1726092706302,1.97156055,57505.0,57504.0,0.002638]
[1726092707209,1.6806942,57505.0,57504.0,0.002638]
[1726092707469,1.75861016,57505.0,57504.0,0.002638]
[1726092707900,1.6806942,57505.0,57504.0,0.002638]
[1726092708140,1.75861023,57505.0,57504.0,0.002638]
[1726092709255,1.6806942,57505.0,57504.0,0.002638]
[1726092709685,1.75858359,57505.0,57504.0,0.002638]
[1726092710355,1.6806942,57505.0,57504.0,0.002638]
[1726092711375,1.73260864,57505.0,57504.0,0.002638]
[1726092711820,1.6806942,57505.0,57504.0,0.002638]
[1726092712258,1.73260389,57505.0,57504.0,0.002638]
[1726092712727,1.70533334,57505.0,57504.0,0.002638]
[1726092713207,1.7053341,57505.0,57504.0,0.002638]
[1726092713682,1.70533121,57505.0,57504.0,0.002638]
[1726092715060,1.65342365,57505.0,57504.0,0.002638]
[1726092717522,1.65424265,57505.0,57504.0,0.002638]
[1726092720395,1.65224265,57505.0,57504.0,0.002638]
[1726092721130,1.70414953,57505.0,57504.0,0.002638]
[1726092721375,0.3069856,57505.0,57504.0,0.002638]
[1726092721622,1.12846878,57505.0,57504.0,0.002638]
[1726092722566,0.78067378,57505.0,57504.0,0.002638]
[1726092722840,0.74740418,57505.0,57504.0,0.001638]
[1726092723085,0.75040418,57505.0,57504.0,0.002638]
[1726092723583,0.74940418,57505.0,57504.0,0.001638]
[1726092724051,0.75040418,57505.0,57504.0,0.002638]
[1726092726330,0.74740418,57505.0,57504.0,0.001638]
[1726092726855,0.74940418,57505.0,57504.0,0.001638]
[1726092727357,0.74840418,57505.0,57504.0,0.001638]
[1726092727571,0.74940418,57505.0,57504.0,0.002638]
[1726092728449,0.80131612,57505.0,57504.0,0.002638]
[1726092729196,0.78306968,57505.0,57504.0,0.01960719]
[1726092729449,0.40527468,57505.0,57504.0,0.01960719]
[1726092729659,0.40192609,57505.0,57504.0,0.01960719]
[1726092730333,0.40092609,57505.0,57504.0,0.01960719]
[1726092731001,0.40092609,57505.0,57504.0,0.95170919]
[1726092731002,0.1054845,57505.0,57504.0,0.95170919]
[1726092731226,0.1054845,57505.0,57504.0,1.38171019]
[1726092731227,0.000819,57505.0,57504.0,1.38171019]
[1726092731454,0.000819,57505.0,57504.0,1.90545137]
[1726092732084,0.000819,57505.0,57504.0,1.91056797]
[1726092732534,0.001819,57505.0,57504.0,1.91056797]
[1726092733217,0.000819,57505.0,57504.0,1.91056797]
[1726092733428,0.000819,57505.0,57504.0,1.92456797]
[1726092733645,0.000819,57505.0,57504.0,1.93456797]
[1726092733864,0.000819,57505.0,57504.0,1.92456797]
[1726092734343,0.000819,57505.0,57504.0,1.93856797]
[1726092740868,0.000819,57505.0,57504.0,2.03856797]
[1726092741475,0.000819,57505.0,57504.0,2.04553697]
[1726092742321,0.000819,57505.0,57504.0,2.06853697]
[1726092748852,0.000819,57505.0,57504.0,2.04553697]
[1726092753347,0.00044253,57505.0,57504.0,2.04553697]
[1726092754541,0.00044253,57505.0,57504.0,2.39333797]
[1726092758000,0.00044253,57505.0,57504.0,2.51488256]
[1726092772093,0.00044253,57505.0,57504.0,1.90073697]
[1726092779216,0.06374253,57505.0,57504.0,0.92222579]
[1726092780454,0.06374253,57505.0,57504.0,0.90822579]
[1726092780925,0.06374253,57505.0,57504.0,0.92022579]
[1726092781403,0.06374253,57505.0,57504.0,0.90622579]
[1726092781636,0.06374253,57505.0,57504.0,0.90522579]
[1726092782764,0.06374253,57505.0,57504.0,0.89422579]
[1726092783000,0.06374253,57505.0,57504.0,0.90922579]
[1726092783446,0.06374253,57505.0,57504.0,0.89922579]
[1726092783662,0.06374253,57505.0,57504.0,0.91122579]
[1726092787538,0.14594253,57505.0,57504.0,0.91122579]
[1726092798911,0.06374253,57505.0,57504.0,0.91122579]
[1726092800720,0.06374253,57505.0,57504.0,0.90424818]
[1726092808241,0.00044253,57505.0,57504.0,1.49588936]
[1726092808493,0.00044253,57505.0,57504.0,1.67528936]
[1726092808959,0.00044253,57505.0,57504.0,2.01809036]
[1726092809207,0.00044253,57505.0,57504.0,1.65828936]
[1726092809406,0.00044253,57505.0,57504.0,1.67528936]
[1726092809620,0.00044253,57505.0,57504.0,1.66328936]
[1726092809843,0.00044253,57505.0,57504.0,2.01109036]
[1726092810059,0.00044253,57505.0,57504.0,2.02509036]
[1726092810796,0.00044253,57505.0,57504.0,1.67228936]
[1726092811237,0.00044253,57505.0,57504.0,1.68628936]
[1726092812119,0.00044253,57505.0,57504.0,2.03409036]
[1726092823139,0.00044253,57505.0,57504.0,2.04105836]
[1726092829350,0.06444253,57505.0,57504.0,1.26304918]
[1726092841873,0.00044253,57505.0,57504.0,1.26304918]
[1726092843910,0.06274253,57505.0,57504.0,1.26304918]
[1726092844358,0.00044253,57505.0,57504.0,1.26304918]
[1726092847086,0.00044253,57505.0,57504.0,1.50318936]
[1726092847747,0.00044253,57505.0,57504.0,1.85099036]
[1726092850233,0.00044253,57505.0,57504.0,1.50318936]
[1726092851132,0.00044253,57505.0,57504.0,1.85099036]
[1726092851812,0.00044253,57505.0,57504.0,1.43898936]
[1726092854147,0.00044253,57505.0,57504.0,1.94325836]
[1726092854387,0.00017947,57505.0,57504.0,2.09425836]
[1726092854638,0.00017947,57505.0,57504.0,2.21580295]
[1726092855416,0.00017947,57505.0,57504.0,2.56360395]
[1726092855849,0.00017947,57505.0,57504.0,2.61564354]
[1726092856299,0.00017947,57505.0,57504.0,2.56360395]
[1726092857960,0.00017947,57505.0,57504.0,2.21580295]
[1726092858205,0.00017947,57505.0,57504.0,2.09425836]
[1726092858474,0.00017947,57505.0,57504.0,2.21580295]
[1726092862018,0.00017947,57505.0,57504.0,2.56360395]
[1726092862236,0.00017947,57505.0,57504.0,2.21580295]
[1726092867657,0.00017947,57505.0,57504.0,2.56360395]
[1726092867910,0.00017947,57505.0,57504.0,2.21580295]
[1726092870233,0.00017947,57505.0,57504.0,2.56360395]
[1726092871249,0.00017947,57505.0,57504.0,2.21580295]
[1726092873691,0.00017947,57505.0,57504.0,1.89375836]
[1726092890998,0.00017947,57505.0,57504.0,1.95795836]
[1726092892347,0.00017947,57505.0,57504.0,2.01197229]
[1726092892820,0.00017947,57505.0,57504.0,2.00997229]
[1726092894925,0.00017947,57505.0,57504.0,1.95795836]
[1726092895282,0.00017947,57505.0,57504.0,2.03597926]
[1726092896287,0.00017947,57505.0,57504.0,2.23252943]
[1726092896494,0.00017947,57505.0,57504.0,2.35407402]
[1726092896908,0.00017947,57505.0,57504.0,2.16832943]
[1726092897109,0.00017947,57505.0,57504.0,1.89375836]
[1726092898217,0.00017947,57505.0,57504.0,2.16841995]
[1726092899336,0.00017947,57505.0,57504.0,2.09039905]
[1726092901402,0.00017947,57505.0,57504.0,2.09239905]
[1726092901636,0.00017947,57505.0,57504.0,2.21394364]
[1726092903008,0.00017947,57505.0,57504.0,2.3179715]
[1726092903448,0.00017947,57505.0,57504.0,2.21394364]
[1726092904798,0.00017947,57505.0,57504.0,2.56174464]
[1726092905055,0.00017947,57505.0,57504.0,2.21394364]
[1726092905232,0.00017947,57505.0,57504.0,2.21194364]
[1726092905662,0.00017947,57505.0,57504.0,2.21196539]
[1726092906327,0.00017947,57505.0,57504.0,2.78057934]
[1726092906553,0.00017947,57505.0,57504.0,2.80660757]
[1726092907002,0.00017947,57505.0,57504.0,2.80860757]
[1726092907229,0.0032946,57506.0,57504.0,2.80860757]
[1726092907230,7e-08,57506.0,57505.0,0.032]
[1726092907457,0.001638,57509.0,57508.0,1.324545]
[1726092907458,7e-08,57509.0,57508.0,1.324545]
[1726092907706,7e-08,57509.0,57508.0,2.96202321]
[1726092907931,7e-08,57509.0,57508.0,3.45596401]
[1726092908148,7e-08,57509.0,57508.0,3.80374101]
[1726092908373,7e-08,57509.0,57508.0,3.67366594]
[1726092908605,7e-08,57509.0,57508.0,3.56412135]
[1726092908823,7e-08,57509.0,57508.0,3.68766594]
[1726092909491,7e-08,57509.0,57508.0,3.79167362]
[1726092909709,7e-08,57509.0,57508.0,3.77767362]
[1726092909936,7e-08,57509.0,57508.0,3.06335203]
[1726092910151,7e-08,57509.0,57508.0,3.05135597]
[1726092910368,7e-08,57509.0,57508.0,3.05053542]
[1726092910580,7e-08,57509.0,57508.0,2.48390849]
[1726092911016,7e-08,57509.0,57508.0,2.35790726]
[1726092911017,0.06600007,57509.0,57508.0,2.35790726]
[1726092911269,0.06600007,57509.0,57508.0,2.30590491]
[1726092911524,0.06600007,57509.0,57508.0,2.29190491]
[1726092911749,0.06600007,57509.0,57508.0,2.31990491]
[1726092912398,0.06600007,57509.0,57508.0,2.41990491]
[1726092913070,0.06600007,57509.0,57508.0,2.39190491]
[1726092913487,0.06600007,57509.0,57508.0,2.41990491]
[1726092913924,0.06600007,57509.0,57508.0,2.40590491]
[1726092914388,0.06600007,57509.0,57508.0,2.41990491]
[1726092916559,0.06600007,57509.0,57508.0,2.38502491]
[1726092917216,0.14690007,57509.0,57508.0,1.51353073]
[1726092917442,0.44232966,57509.0,57508.0,0.04408873]
[1726092917676,0.26844466,57509.0,57508.0,0.04408873]
[1726092917965,0.26844466,57509.0,57508.0,0.22102609]
[1726092918195,0.14690007,57509.0,57508.0,0.55480309]
[1726092918438,0.19909254,57509.0,57508.0,0.55480309]
[1726092918878,0.14690007,57509.0,57508.0,0.55480309]
[1726092919304,0.14690007,57509.0,57508.0,0.54080309]
[1726092919519,0.19907686,57509.0,57508.0,0.55480309]
[1726092919742,0.19907686,57509.0,57508.0,0.56880309]
[1726092919946,0.19907686,57509.0,57508.0,0.55480309]
[1726092920170,0.19907686,57509.0,57508.0,0.02513809]
[1726092920429,0.14690007,57509.0,57508.0,0.02513809]
[1726092920671,0.14690007,57509.0,57508.0,0.19902609]
[1726092921439,0.14690007,57509.0,57508.0,0.02513809]
[1726092921878,0.66855607,57509.0,57508.0,0.02513809]
[1726092922125,0.66855607,57509.0,57508.0,0.006]
[1726092922126,1.30855625,57509.0,57508.0,0.006]
[1726092922352,1.36409807,57509.0,57508.0,0.006]
[1726092922560,1.36409807,57509.0,57504.0,0.001638]
[1726092922564,0.521692,57505.0,57504.0,0.001638]
[1726092922811,1.32844197,57505.0,57504.0,0.001638]
[1726092923082,1.94440652,57505.0,57504.0,0.001638]
[1726092923302,1.94440652,57505.0,57491.0,0.001638]
[1726092923303,0.173937,57492.0,57491.0,0.001638]
[1726092923548,0.44518159,57492.0,57491.0,0.02081654]
[1726092924013,0.79305559,57492.0,57491.0,0.02081654]
[1726092924406,1.14092959,57492.0,57491.0,0.001638]
[1726092924859,0.79305559,57492.0,57491.0,0.001638]
[1726092925746,0.79305559,57492.0,57491.0,0.002638]
[1726092925961,0.79305559,57492.0,57491.0,0.001638]
[1726092926193,0.8741407,57492.0,57491.0,0.001638]
[1726092926421,0.8781407,57492.0,57491.0,0.001638]
[1726092926666,1.00094097,57492.0,57491.0,0.001638]
[1726092926909,0.99694097,57492.0,57491.0,0.001638]
[1726092927138,1.34481497,57492.0,57491.0,0.001638]
[1726092927356,1.5768887,57492.0,57491.0,0.002638]
[1726092927833,1.5698887,57492.0,57491.0,0.001638]
[1726092928050,1.5768887,57492.0,57491.0,0.001638]
[1726092928285,1.75305825,57492.0,57491.0,0.001638]
[1726092929400,1.75105825,57492.0,57491.0,0.001638]
[1726092930304,1.75305825,57492.0,57491.0,0.001638]
[1726092931240,1.75105825,57492.0,57491.0,0.001638]
[1726092934961,1.75305825,57492.0,57491.0,0.001638]
[1726092936100,1.78033283,57492.0,57491.0,0.001638]
[1726092936768,1.77833283,57492.0,57491.0,0.001638]
[1726092936988,1.60216328,57492.0,57491.0,0.001638]
[1726092938871,1.60416328,57492.0,57491.0,0.001638]
[1726092941724,1.60216328,57492.0,57491.0,0.001638]
[1726092942431,1.60416328,57492.0,57491.0,0.001638]
[1726092942647,1.77474162,57492.0,57491.0,0.001638]
[1726092942878,1.74746704,57492.0,57491.0,0.001638]
[1726092944019,1.74546704,57492.0,57491.0,0.001638]
[1726092944241,1.74746704,57492.0,57491.0,0.001638]
[1726092946024,1.77746704,57492.0,57491.0,0.001638]
[1726092946259,1.80474174,57492.0,57491.0,0.001638]
[1726092947209,2.33561574,57492.0,57491.0,0.001638]
[1726092948190,2.25459672,57492.0,57491.0,0.001638]
[1726092948466,2.25259672,57492.0,57491.0,0.001638]
[1726092948704,2.07701838,57492.0,57491.0,0.001638]
[1726092948923,2.07901838,57492.0,57491.0,0.001638]
[1726092949605,2.07901838,57492.0,57491.0,0.002638]
[1726092949842,2.07901838,57492.0,57491.0,0.001638]
[1726092950133,2.07901838,57492.0,57491.0,0.002638]
[1726092950562,2.25518793,57492.0,57491.0,0.002638]
[1726092951713,2.07901838,57492.0,57491.0,0.002638]
[1726092951936,2.08401838,57492.0,57491.0,0.002638]
[1726092952978,2.05674368,57492.0,57491.0,0.002638]
[1726092953427,2.05174368,57492.0,57491.0,0.002638]
[1726092954670,2.05874368,57492.0,57491.0,0.003638]
[1726092954909,2.23491323,57492.0,57491.0,0.003638]
[1726092956007,2.26219099,57492.0,57491.0,0.003638]
[1726092957622,2.31395837,57492.0,57491.0,0.003638]
[1726092960609,2.36583823,57492.0,57491.0,0.003638]
[1726092961571,2.39177816,57492.0,57491.0,0.003638]
[1726092961799,2.73965216,57492.0,57491.0,0.003638]
[1726092962032,2.73965216,57492.0,57480.0,0.001638]
[1726092962033,1.60350368,57481.0,57480.0,0.001638]
[1726092962294,1.399914,57480.0,57479.0,0.001638]
[1726092962516,1.929861,57480.0,57479.0,0.001638]
[1726092962741,2.29506717,57480.0,57479.0,0.001638]
[1726092963200,2.16505597,57480.0,57479.0,0.001638]
[1726092963431,2.16505597,57480.0,57463.0,0.0037747]
[1726092963432,0.99171768,57464.0,57463.0,0.0037747]
[1726092964157,0.99171768,57464.0,57463.0,0.0222649]
[1726092964388,0.99171768,57464.0,57463.0,0.0037747]
[1726092964389,1.07291476,57464.0,57463.0,0.0037747]
[1726092964891,0.522064,57464.0,57463.0,0.0037747]
[1726092965369,0.72487176,57464.0,57463.0,0.0037747]
[1726092965611,1.18040504,57464.0,57463.0,0.0037747]
[1726092966093,1.18140504,57464.0,57463.0,0.0037747]
[1726092966334,1.52944804,57464.0,57463.0,0.0037747]
[1726092966833,1.64344804,57464.0,57463.0,0.0037747]
[1726092967062,1.71014804,57464.0,57463.0,0.0037747]
[1726092968538,1.71214804,57464.0,57463.0,0.0037747]
[1726092969337,1.71314804,57464.0,57463.0,0.0037747]
[1726092969575,1.71414804,57464.0,57463.0,0.0037747]
[1726092969804,1.72014804,57464.0,57463.0,0.0037747]
[1726092970034,1.71914804,57464.0,57463.0,0.0037747]
[1726092970283,1.72214804,57464.0,57463.0,0.0037747]
[1726092971483,1.7741838,57464.0,57463.0,0.0037747]
[1726092971715,1.79720169,57464.0,57463.0,0.0037747]
[1726092971948,1.79020169,57464.0,57463.0,0.0037747]
[1726092972173,1.71214804,57464.0,57463.0,0.0037747]
[1726092972414,2.22124469,57464.0,57463.0,0.0037747]
[1726092972666,2.53168399,57464.0,57463.0,0.0037747]
[1726092972911,2.43361246,57464.0,57463.0,0.0037747]
[1726092973158,2.55770188,57464.0,57463.0,0.0054147]
[1726092973382,2.5446885,57464.0,57463.0,0.0054147]
[1726092973609,2.5356885,57464.0,57463.0,0.0054147]
[1726092973832,2.5296885,57464.0,57463.0,0.0054147]
[1726092974058,2.85074901,57464.0,57463.0,0.00023844]
[1726092974290,2.43961246,57464.0,57463.0,0.00023844]
[1726092974564,2.42761246,57464.0,57463.0,0.00023844]
[1726092974793,2.43861246,57464.0,57463.0,0.00023844]
[1726092974955,2.44061246,57464.0,57463.0,0.00023844]
[1726092975392,2.45461246,57464.0,57463.0,0.00023844]
[1726092975594,2.44061246,57464.0,57463.0,0.00023844]
[1726092975960,2.48190435,57464.0,57463.0,0.00023844]
[1726092976169,2.46890435,57464.0,57463.0,0.00023844]
[1726092977024,2.48290435,57464.0,57463.0,0.00023844]
[1726092977694,2.65230435,57464.0,57463.0,0.00023844]
[1726092978130,2.66630435,57464.0,57463.0,0.00023844]
[1726092979252,2.79615301,57464.0,57463.0,0.00023844]
[1726092981137,2.66630435,57464.0,57463.0,0.00023844]
[1726092981762,2.66490084,57464.0,57463.0,0.00023844]
[1726092982217,2.76872802,57464.0,57463.0,0.00023844]
[1726092982670,2.74143613,57464.0,57463.0,0.00023844]
[1726092983984,2.74143613,57464.0,57463.0,1.077e-05]
[1726092985942,2.74225613,57464.0,57463.0,1.077e-05]
[1726092986159,2.55738183,57464.0,57463.0,1.077e-05]
[1726092986594,2.66120901,57464.0,57463.0,1.077e-05]
[1726092986832,2.66109458,57464.0,57463.0,1.077e-05]
[1726092987048,2.5572899,57464.0,57463.0,1.077e-05]
[1726092987264,2.58458141,57464.0,57463.0,1.077e-05]
[1726092987479,2.68838609,57464.0,57463.0,1.077e-05]
[1726092988398,1.45226151,57464.0,57463.0,1.077e-05]
[1726092988661,1.66587717,57464.0,57463.0,1.077e-05]
[1726092989114,1.72837717,57464.0,57463.0,1.077e-05]
[1726092989347,2.06242017,57464.0,57463.0,1.077e-05]
[1726092989572,2.05346515,57464.0,57463.0,1.077e-05]
[1726092989850,2.2666347,57464.0,57463.0,1.077e-05]
[1726092990070,2.2806347,57464.0,57463.0,1.077e-05]
[1726092990301,2.36177817,57464.0,57463.0,1.077e-05]
[1726092990533,2.34777817,57464.0,57463.0,1.077e-05]
[1726092990766,2.27887817,57464.0,57463.0,1.077e-05]
[1726092991003,2.26487817,57464.0,57463.0,1.077e-05]
[1726092991228,2.25087817,57464.0,57463.0,1.077e-05]
[1726092991454,2.53766847,57464.0,57463.0,1.077e-05]
[1726092991677,2.55169725,57464.0,57463.0,1.077e-05]
[1726092991925,2.56569725,57464.0,57463.0,1.077e-05]
[1726092992841,2.53840574,57464.0,57463.0,1.077e-05]
[1726092993290,2.51040574,57464.0,57463.0,1.077e-05]
[1726092993487,2.40657228,57464.0,57463.0,1.077e-05]
[1726092993709,2.41957228,57464.0,57463.0,1.077e-05]
[1726092994171,1.310217,57461.0,57460.0,0.00078977]
[1726092994407,1.433217,57461.0,57460.0,0.00078977]
[1726092994614,1.68728247,57461.0,57460.0,0.00078977]
[1726092994830,1.51111292,57461.0,57460.0,0.00078977]
[1726092995977,1.59019143,57461.0,57460.0,0.00078977]
[1726092996197,1.60319143,57461.0,57460.0,0.00078977]
[1726092996689,1.61321798,57461.0,57460.0,0.00078977]
[1726092997365,1.96127998,57461.0,57460.0,0.00078977]
[1726092997601,0.594661,57451.0,57444.0,0.00063686]
[1726092997833,1.333511,57447.0,57444.0,0.00063686]
[1726092998079,0.062,57446.0,57444.0,0.00063686]
[1726092998314,0.062,57446.0,57430.0,0.0681]
[1726092998315,0.174112,57434.0,57430.0,0.0681]
[1726092998536,0.87491562,57434.0,57430.0,0.0681]
[1726092998768,1.22314062,57434.0,57433.0,0.03329664]
[1726092998994,1.22314062,57434.0,57433.0,0.001638]
[1726092999704,1.25044202,57434.0,57433.0,0.001638]
[1726092999935,1.25244202,57434.0,57433.0,0.001638]
[1726093000204,1.25044202,57434.0,57433.0,0.001638]
[1726093000439,1.25344202,57434.0,57433.0,0.001638]
[1726093000902,1.06005163,57434.0,57433.0,0.001638]
[1726093001122,0.90621702,57434.0,57433.0,0.001638]
[1726093001582,0.9008634,57434.0,57433.0,0.001638]
[1726093001806,0.9028634,57434.0,57433.0,0.001638]
[1726093002041,0.9048634,57434.0,57433.0,0.001638]
[1726093002268,0.9018634,57434.0,57433.0,0.001638]